bitfinex/quotes_BTCUSD_20250219
["timestamp","ask_amount","ask_price","bid_price","bid_amount"]
[1739962407841,0.1716741,96506.0,96505.0,0.00752]
[1739962409009,0.1736741,96506.0,96505.0,0.00752]
[1739962412086,0.1716741,96506.0,96505.0,0.00752]
[1739962412408,0.1736741,96506.0,96505.0,0.00752]
[1739962413223,0.1716741,96506.0,96505.0,0.00752]
[1739962413426,0.15543,96506.0,96505.0,0.00752]
[1739962413650,0.15743,96506.0,96505.0,0.00752]
[1739962416648,0.17367447,96506.0,96505.0,0.00752]
[1739962417371,0.32367447,96506.0,96505.0,0.00752]
[1739962420137,0.155437,96502.0,96501.0,0.00098081]
[1739962420345,0.155437,96502.0,96501.0,0.00850081]
[1739962421359,0.50364065,96502.0,96501.0,0.00098081]
[1739962421565,1.12828865,96502.0,96501.0,0.00850081]
[1739962421775,1.60037765,96502.0,96501.0,0.00850081]
[1739962422224,1.62979796,96502.0,96501.0,0.00850081]
[1739962422421,1.54615596,96502.0,96501.0,0.00950081]
[1739962423200,1.49412096,96502.0,96501.0,0.00950081]
[1739962423400,1.49912096,96502.0,96501.0,0.00950081]
[1739962423603,1.46970065,96502.0,96501.0,0.00850081]
[1739962424010,1.47270065,96502.0,96501.0,0.00850081]
[1739962425003,1.06880665,96502.0,96501.0,0.00850081]
[1739962425785,0.69200865,96502.0,96501.0,0.00850081]
[1739962425992,0.55144665,96502.0,96501.0,0.00850081]
[1739962426198,0.41594065,96502.0,96501.0,0.00850081]
[1739962426554,0.55144365,96502.0,96501.0,0.00850081]
[1739962428413,0.51882265,96502.0,96501.0,0.00850081]
[1739962428989,0.53506869,96502.0,96501.0,0.00850081]
[1739962431164,0.17968304,96502.0,96501.0,0.00850081]
[1739962431312,0.17968304,96502.0,96501.0,0.01634221]
[1739962431520,0.32968304,96502.0,96501.0,0.01634221]
[1739962432308,0.32968304,96502.0,96501.0,0.00850081]
[1739962432669,0.32968304,96502.0,96501.0,0.00098081]
[1739962432879,0.32968304,96502.0,96501.0,0.00850081]
[1739962433256,0.17968304,96502.0,96501.0,0.00850081]
[1739962433456,0.163437,96502.0,96501.0,0.00850081]
[1739962433656,0.163437,96502.0,96501.0,0.01634221]
[1739962435268,0.008,96502.0,96501.0,0.01634221]
[1739962435720,0.008,96502.0,96501.0,0.00850081]
[1739962436646,0.0242446,96502.0,96501.0,0.00850081]
[1739962436812,0.0162446,96502.0,96501.0,0.00850081]
[1739962437023,0.0192446,96502.0,96501.0,0.00850081]
[1739962437226,0.0192446,96502.0,96501.0,0.09484221]
[1739962437630,0.0162446,96502.0,96501.0,0.09584221]
[1739962437831,0.0172446,96502.0,96501.0,0.09484221]
[1739962438248,0.0162446,96502.0,96501.0,0.09784221]
[1739962438459,0.0162446,96502.0,96501.0,0.09484221]
[1739962438661,0.0162446,96502.0,96501.0,0.09584221]
[1739962439857,0.0162446,96502.0,96501.0,0.09884221]
[1739962440057,0.0162446,96502.0,96501.0,0.09584221]
[1739962440463,0.0162446,96502.0,96501.0,0.09884221]
[1739962440659,0.0162446,96502.0,96501.0,0.09484221]
[1739962441084,0.0162446,96502.0,96501.0,0.09884221]
[1739962441317,0.0162446,96502.0,96501.0,0.09584221]
[1739962441503,0.0162446,96502.0,96501.0,0.00982221]
[1739962441678,0.1716816,96502.0,96501.0,0.10354221]
[1739962441886,0.0162446,96502.0,96501.0,0.10354221]
[1739962442436,0.0162446,96502.0,96501.0,0.08818081]
[1739962442562,0.1716816,96502.0,96501.0,0.10354221]
[1739962442779,0.0162446,96502.0,96501.0,0.10354221]
[1739962443081,0.0162446,96502.0,96501.0,0.10054221]
[1739962443339,0.42113016,96509.0,96501.0,0.10054221]
[1739962443788,0.42113016,96509.0,96501.0,0.09270081]
[1739962443970,0.42113016,96509.0,96502.0,0.00784088]
[1739962444172,0.42113016,96509.0,96504.0,0.0817]
[1739962444761,0.42113016,96509.0,96505.0,0.00783933]
[1739962445358,0.42413016,96509.0,96505.0,0.00783933]
[1739962445710,0.42413016,96509.0,96506.0,0.0798]
[1739962445833,0.42113016,96509.0,96506.0,0.0798]
[1739962446037,0.42313016,96509.0,96507.0,0.0078383]
[1739962446307,0.42213016,96509.0,96507.0,0.0078383]
[1739962447141,0.42213016,96509.0,96507.0,0.001]
[1739962447314,0.42213016,96509.0,96508.0,0.00783778]
[1739962447608,0.42113016,96509.0,96507.0,0.001]
[1739962447859,0.42413016,96509.0,96507.0,0.001]
[1739962448268,0.43737382,96509.0,96508.0,0.00783778]
[1739962448422,0.43737382,96509.0,96508.0,0.00883778]
[1739962449031,0.43737382,96509.0,96508.0,0.00783778]
[1739962449189,0.43737382,96509.0,96507.0,0.003]
[1739962449389,0.43737382,96509.0,96508.0,0.00783778]
[1739962449789,0.43737382,96509.0,96508.0,0.00983778]
[1739962450425,0.43737382,96509.0,96508.0,0.002]
[1739962450689,0.43737382,96509.0,96508.0,0.00983778]
[1739962450967,0.43737382,96509.0,96508.0,0.01083778]
[1739962451161,0.43737382,96509.0,96508.0,0.003]
[1739962451631,0.43737382,96509.0,96508.0,0.01083778]
[1739962451832,0.43737382,96509.0,96508.0,0.003]
[1739962452035,0.43737382,96509.0,96508.0,0.01083778]
[1739962453137,0.43737382,96509.0,96508.0,0.16626478]
[1739962453361,0.43737382,96509.0,96508.0,0.01083778]
[1739962453536,0.42113016,96509.0,96508.0,0.01083778]
[1739962457747,0.43737355,96509.0,96508.0,0.01083778]
[1739962462609,0.42113016,96509.0,96508.0,0.01083778]
[1739962463423,0.42113016,96509.0,96508.0,0.003]
[1739962463806,0.42113016,96509.0,96508.0,0.01083778]
[1739962465307,0.42113016,96509.0,96508.0,0.003]
[1739962466493,0.42113016,96509.0,96508.0,0.01083778]
[1739962466663,0.42113016,96509.0,96508.0,0.003]
[1739962467074,0.42113016,96509.0,96508.0,0.01835778]
[1739962467243,0.43737382,96509.0,96508.0,0.01835778]
[1739962470317,0.43737382,96509.0,96508.0,0.01920878]
[1739962473383,0.42113016,96509.0,96508.0,0.01920878]
[1739962474127,0.42054908,96509.0,96508.0,0.01920878]
[1739962477295,0.42054908,96509.0,96508.0,0.011371]
[1739962477685,0.42054908,96509.0,96508.0,0.01920878]
[1739962477892,0.43679238,96509.0,96508.0,0.01920878]
[1739962478098,0.43679238,96509.0,96508.0,0.011371]
[1739962478420,0.43679238,96509.0,96508.0,0.29973578]
[1739962478878,0.42054908,96509.0,96508.0,0.29973578]
[1739962479561,0.42054908,96509.0,96508.0,0.31919356]
[1739962480858,0.42054908,96509.0,96508.0,0.14430878]
[1739962481443,0.42054908,96509.0,96508.0,0.01920878]
[1739962481638,0.42054908,96509.0,96508.0,0.011371]
[1739962483245,0.43679178,96509.0,96508.0,0.011371]
[1739962483389,0.42054908,96509.0,96508.0,0.011371]
[1739962485611,0.57597408,96509.0,96508.0,0.011371]
[1739962486437,0.57597408,96509.0,96508.0,0.010371]
[1739962487199,0.57597408,96509.0,96508.0,0.008371]
[1739962487780,0.59221742,96509.0,96508.0,0.000851]
[1739962488048,0.59221742,96509.0,96508.0,0.008371]
[1739962488693,0.59421742,96509.0,96508.0,0.008371]
[1739962488868,0.59521742,96509.0,96508.0,0.008371]
[1739962489309,0.59621742,96509.0,96508.0,0.008371]
[1739962489920,0.88210525,96509.0,96508.0,0.008371]
[1739962490183,0.84572107,96509.0,96508.0,0.008371]
[1739962490336,0.84872107,96509.0,96508.0,0.008371]
[1739962491444,1.26406707,96509.0,96508.0,0.008371]
[1739962491680,1.23291307,96509.0,96508.0,0.008371]
[1739962492350,1.23703232,96509.0,96508.0,0.008371]
[1739962496232,1.47578232,96509.0,96508.0,0.008371]
[1739962496728,1.43915732,96509.0,96508.0,0.008371]
[1739962497042,1.45540197,96509.0,96508.0,0.008371]
[1739962498820,1.30088497,96509.0,96508.0,0.008371]
[1739962499564,1.30088497,96509.0,96508.0,0.000851]
[1739962499771,0.86908497,96509.0,96508.0,0.008371]
[1739962503365,0.85284032,96509.0,96508.0,0.008371]
[1739962505092,0.83247773,96509.0,96508.0,0.008371]
[1739962508063,0.84872237,96509.0,96508.0,0.008371]
[1739962512045,0.74621872,96509.0,96508.0,0.090271]
[1739962512389,0.72997408,96509.0,96508.0,0.090271]
[1739962512588,0.72697408,96509.0,96508.0,0.090271]
[1739962512785,0.42154908,96509.0,96508.0,0.090271]
[1739962512984,0.42354908,96509.0,96508.0,0.090271]
[1739962513186,0.42354908,96509.0,96508.0,0.138871]
[1739962513418,0.42154908,96509.0,96508.0,0.14670878]
[1739962513625,0.42354908,96509.0,96508.0,0.14670878]
[1739962513847,0.42354908,96509.0,96508.0,0.138871]
[1739962514047,0.42354908,96509.0,96508.0,0.14670878]
[1739962515124,0.42054908,96509.0,96508.0,0.14670878]
[1739962515434,0.42154908,96509.0,96508.0,0.14670878]
[1739962515572,0.42054908,96509.0,96508.0,0.138871]
[1739962515792,0.42054908,96509.0,96508.0,0.14870878]
[1739962515992,0.42054908,96509.0,96508.0,0.14970878]
[1739962516916,0.4367923,96509.0,96508.0,0.14970878]
[1739962517092,0.4367923,96509.0,96508.0,0.30513578]
[1739962523981,0.42054908,96509.0,96508.0,0.30513578]
[1739962524135,0.42054908,96509.0,96508.0,0.30413578]
[1739962524623,0.42054908,96509.0,96508.0,0.30513578]
[1739962525154,0.42054908,96509.0,96508.0,0.30313578]
[1739962525578,0.42054908,96509.0,96508.0,0.30513578]
[1739962528459,0.43679156,96509.0,96508.0,0.30513578]
[1739962533336,0.42054908,96509.0,96508.0,0.30513578]
[1739962537800,0.4367914,96509.0,96508.0,0.30513578]
[1739962543405,0.42054908,96509.0,96508.0,0.30513578]
[1739962545282,0.42054908,96509.0,96508.0,0.40763943]
[1739962545990,0.42054908,96509.0,96508.0,0.40663943]
[1739962546188,0.42054908,96509.0,96508.0,0.42709162]
[1739962546389,0.42054908,96509.0,96508.0,0.42509162]
[1739962546797,0.42054908,96509.0,96508.0,0.42409162]
[1739962546978,0.42154908,96509.0,96508.0,0.42509162]
[1739962547752,0.43779064,96509.0,96508.0,0.42509162]
[1739962548294,0.43879064,96509.0,96508.0,0.43109162]
[1739962549930,0.43879064,96509.0,96508.0,0.77869162]
[1739962550346,0.42254908,96509.0,96508.0,0.77869162]
[1739962551853,0.42254908,96509.0,96508.0,0.75923943]
[1739962554624,0.42254908,96509.0,96508.0,0.77868554]
[1739962558498,0.42254908,96509.0,96508.0,0.75923943]
[1739962564089,0.42254908,96509.0,96508.0,0.77868276]
[1739962565311,0.42254908,96509.0,96508.0,0.75923943]
[1739962566818,0.42254908,96509.0,96508.0,0.75919943]
[1739962570454,0.42254908,96509.0,96508.0,0.77864438]
[1739962572073,0.42254908,96509.0,96508.0,0.75919943]
[1739962574130,0.42254908,96509.0,96508.0,0.77864907]
[1739962575995,0.42254908,96509.0,96508.0,0.75919943]
[1739962576372,0.42254908,96509.0,96508.0,0.7786536]
[1739962592022,0.42154908,96509.0,96508.0,0.7726536]
[1739962592400,0.42254908,96509.0,96508.0,0.7796536]
[1739962592746,0.42154908,96509.0,96508.0,0.7786536]
[1739962592943,0.42254908,96509.0,96508.0,0.7806536]
[1739962603606,0.42054908,96509.0,96508.0,0.7716536]
[1739962604028,0.42154908,96509.0,96508.0,0.7836536]
[1739962608364,0.42054908,96509.0,96508.0,0.7786536]
[1739962608711,0.42054908,96509.0,96508.0,0.7826536]
[1739962609786,0.42054908,96509.0,96508.0,0.7756536]
[1739962609952,0.42054908,96509.0,96508.0,0.7826536]
[1739962613319,0.42054908,96509.0,96508.0,0.4662466]
[1739962613564,0.42054908,96509.0,96508.0,0.4737266]
[1739962614404,0.42054908,96509.0,96508.0,0.6291536]
[1739962615426,0.42054908,96509.0,96508.0,0.4737266]
[1739962615629,0.42054908,96509.0,96508.0,0.36374295]
[1739962615835,0.42054908,96509.0,96508.0,0.37122295]
[1739962616818,0.42054908,96509.0,96508.0,0.35176878]
[1739962618169,0.43679058,96509.0,96508.0,0.35176878]
[1739962618528,0.43679058,96509.0,96508.0,0.50719578]
[1739962618882,0.43679058,96509.0,96508.0,0.35176878]
[1739962619649,0.43679058,96509.0,96508.0,0.60969943]
[1739962620615,0.43679058,96509.0,96508.0,0.62914399]
[1739962622160,0.43679058,96509.0,96508.0,0.60969943]
[1739962623391,0.42054908,96509.0,96508.0,0.60969943]
[1739962628164,0.43679046,96509.0,96508.0,0.60969943]
[1739962632243,0.43679046,96509.0,96508.0,0.63269943]
[1739962632848,0.42054908,96509.0,96508.0,0.63269943]
[1739962633115,0.42054908,96509.0,96508.0,0.62869943]
[1739962633319,0.42054908,96509.0,96508.0,0.62169943]
[1739962633642,0.42054908,96509.0,96508.0,0.63369943]
[1739962633964,0.42054908,96509.0,96508.0,0.62869943]
[1739962634321,0.42054908,96509.0,96508.0,0.63469943]
[1739962634733,0.42054908,96509.0,96508.0,0.65414522]
[1739962637368,0.43679026,96509.0,96508.0,0.65414522]
[1739962643360,0.42054908,96509.0,96508.0,0.65414522]
[1739962647996,0.43679026,96509.0,96508.0,0.65414522]
[1739962654102,0.42054908,96509.0,96508.0,0.65414522]
[1739962658281,0.43679026,96509.0,96508.0,0.65414522]
[1739962664160,0.42054908,96509.0,96508.0,0.65414522]
[1739962666177,0.42054908,96509.0,96508.0,0.64666522]
[1739962666385,0.42054908,96509.0,96508.0,0.65414522]
[1739962667487,0.43679026,96509.0,96508.0,0.65414522]
[1739962673477,0.42054908,96509.0,96508.0,0.65414522]
[1739962676733,0.43679026,96509.0,96508.0,0.65414522]
[1739962677334,0.43679026,96509.0,96508.0,0.64666522]
[1739962677538,0.43679026,96509.0,96508.0,0.65414522]
[1739962680633,0.43679026,96509.0,96508.0,0.63114522]
[1739962683460,0.42054908,96509.0,96508.0,0.63114522]
[1739962686787,0.43679026,96509.0,96508.0,0.62366522]
[1739962686989,0.43679026,96509.0,96508.0,0.63114522]
[1739962693296,0.42054908,96509.0,96508.0,0.63114522]
[1739962695847,0.42054908,96509.0,96508.0,0.63072676]
[1739962696056,0.42054908,96509.0,96508.0,0.66186383]
[1739962696634,0.43679034,96509.0,96508.0,0.66186383]
[1739962703438,0.42054908,96509.0,96508.0,0.66186383]
[1739962706457,0.42054908,96509.0,96508.0,0.69429983]
[1739962706662,0.43679034,96509.0,96508.0,0.69429983]
[1739962707211,0.43679034,96509.0,96508.0,0.66186383]
[1739962708290,0.43679034,96509.0,96508.0,0.69430005]
[1739962709419,0.43679034,96509.0,96508.0,0.66186383]
[1739962710014,0.43679034,96509.0,96508.0,0.55936018]
[1739962710219,0.43679034,96509.0,96508.0,0.39645318]
[1739962710370,0.43679034,96509.0,96508.0,0.40393318]
[1739962710596,0.43679034,96509.0,96508.0,0.55936018]
[1739962711226,0.43679034,96509.0,96508.0,0.37279611]
[1739962711451,0.43679034,96509.0,96508.0,0.52122311]
[1739962711627,0.43679034,96509.0,96508.0,0.51522311]
[1739962712053,0.43679034,96509.0,96508.0,0.51922311]
[1739962712438,0.43679034,96509.0,96508.0,0.51522311]
[1739962712860,0.43679034,96509.0,96508.0,0.51922311]
[1739962713211,0.43679034,96509.0,96508.0,0.52622311]
[1739962713415,0.42054908,96509.0,96508.0,0.52622311]
[1739962716714,0.43679063,96509.0,96508.0,0.52622311]
[1739962723464,0.42054908,96509.0,96508.0,0.52622311]
[1739962727313,0.42054908,96509.0,96508.0,0.71202676]
[1739962727523,0.42054908,96509.0,96508.0,0.79273789]
[1739962728612,0.42054908,96509.0,96508.0,0.82385331]
[1739962732586,0.42054908,96509.0,96508.0,0.79144218]
[1739962745699,0.42054908,96509.0,96508.0,0.65984218]
[1739962749617,0.42054908,96509.0,96508.0,0.49693518]
[1739962749819,0.42054908,96509.0,96508.0,0.40191153]
[1739962750749,0.42054908,96509.0,96508.0,0.55733853]
[1739962750905,0.42054908,96509.0,96508.0,0.52622311]
[1739962755863,0.43679048,96509.0,96508.0,0.52622311]
[1739962763556,0.42054908,96509.0,96508.0,0.52622311]
[1739962766588,0.4367905,96509.0,96508.0,0.52622311]
[1739962773571,0.42054908,96509.0,96508.0,0.52622311]
[1739962776502,0.43679048,96509.0,96508.0,0.52622311]
[1739962783433,0.42054908,96509.0,96508.0,0.70822676]
[1739962783610,0.42054908,96509.0,96508.0,0.75622676]
[1739962786469,0.42054908,96509.0,96508.0,0.60079976]
[1739962786863,0.42054908,96509.0,96508.0,0.75622676]
[1739962787683,0.43679043,96509.0,96508.0,0.75622676]
[1739962788085,0.43679043,96509.0,96508.0,0.75874676]
[1739962788387,0.43679043,96509.0,96508.0,0.60331976]
[1739962788587,0.43679043,96509.0,96508.0,0.75874676]
[1739962790020,0.43679043,96509.0,96508.0,0.60331976]
[1739962790154,0.43679043,96509.0,96508.0,0.75874676]
[1739962791011,0.43679043,96509.0,96508.0,0.60331976]
[1739962791184,0.43679043,96509.0,96508.0,0.50081611]
[1739962792609,0.43679043,96509.0,96508.0,0.65624311]
[1739962793034,0.43679043,96509.0,96508.0,0.50081611]
[1739962793562,0.42054908,96509.0,96508.0,0.50081611]
[1739962796476,0.43679045,96509.0,96508.0,0.50081611]
[1739962800307,0.59221545,96509.0,96508.0,0.36583611]
[1739962800498,0.59221545,96509.0,96508.0,0.04871611]
[1739962801063,0.603401,96509.0,96508.0,0.02927032]
[1739962801282,0.603401,96509.0,96508.0,0.01827032]
[1739962801457,0.58715963,96509.0,96508.0,0.01827032]
[1739962801656,0.58715963,96509.0,96508.0,0.01927032]
[1739962801879,0.58715963,96509.0,96508.0,0.01827032]
[1739962803295,0.58815963,96509.0,96508.0,0.01827032]
[1739962803667,0.43273463,96509.0,96508.0,0.01827032]
[1739962804414,0.42154908,96509.0,96508.0,0.01827032]
[1739962805016,0.42154908,96509.0,96508.0,0.01079032]
[1739962805250,0.42154908,96509.0,96508.0,0.01827032]
[1739962806295,0.42154908,96509.0,96508.0,0.17369732]
[1739962807979,0.4377908,96509.0,96508.0,0.17369732]
[1739962812190,0.4377908,96509.0,96508.0,0.25529732]
[1739962812938,0.4367908,96509.0,96508.0,0.24781732]
[1739962813151,0.4367908,96509.0,96508.0,0.25829732]
[1739962813347,0.42054908,96509.0,96508.0,0.26129732]
[1739962814172,0.42054908,96509.0,96508.0,0.25829732]
[1739962814659,0.42054908,96509.0,96508.0,0.26129732]
[1739962814862,0.42054908,96509.0,96508.0,0.10287032]
[1739962814977,0.42054908,96509.0,96508.0,0.20837397]
[1739962815588,0.42054908,96509.0,96508.0,0.20537397]
[1739962815789,0.42054908,96509.0,96508.0,0.20237397]
[1739962816003,0.42054908,96509.0,96508.0,0.20837397]
[1739962816428,0.43679032,96509.0,96508.0,0.20537397]
[1739962816886,0.43679032,96509.0,96508.0,0.20837397]
[1739962817231,0.43679032,96509.0,96508.0,0.20537397]
[1739962817860,0.43679032,96509.0,96508.0,0.20837397]
[1739962818313,0.43679032,96509.0,96508.0,0.20537397]
[1739962818501,0.43679032,96509.0,96508.0,0.20837397]
[1739962818659,0.43679032,96509.0,96508.0,0.20537397]
[1739962818876,0.43679032,96509.0,96508.0,0.20237397]
[1739962819077,0.43679032,96509.0,96508.0,0.20837397]
[1739962819717,0.43679032,96509.0,96508.0,0.20537397]
[1739962819995,0.43679032,96509.0,96508.0,0.20837397]
[1739962820409,0.43679032,96509.0,96508.0,0.20537397]
[1739962821011,0.43679032,96509.0,96508.0,0.20837397]
[1739962821453,0.43679032,96509.0,96508.0,0.20537397]
[1739962821669,0.43679032,96509.0,96508.0,0.20837397]
[1739962821903,0.43679032,96509.0,96508.0,0.20537397]
[1739962822130,0.43679032,96509.0,96508.0,0.20237397]
[1739962822397,0.43679032,96509.0,96508.0,0.20837397]
[1739962822717,0.43679032,96509.0,96508.0,0.20537397]
[1739962823128,0.43679032,96509.0,96508.0,0.53297397]
[1739962823557,0.43679032,96509.0,96508.0,0.52997397]
[1739962823758,0.43679032,96509.0,96508.0,0.52697397]
[1739962823953,0.43679032,96509.0,96508.0,0.52997397]
[1739962824692,0.43679032,96509.0,96508.0,0.53297397]
[1739962825222,0.43679032,96509.0,96508.0,0.52997397]
[1739962825756,0.43679032,96509.0,96508.0,0.53297397]
[1739962826546,0.43679032,96509.0,96508.0,0.52997397]
[1739962826738,0.43679032,96509.0,96508.0,0.53297397]
[1739962826921,0.43679032,96509.0,96508.0,0.52997397]
[1739962827083,0.42054908,96509.0,96508.0,0.52997397]
[1739962827282,0.42054908,96509.0,96508.0,0.53297397]
[1739962827493,0.42054908,96509.0,96508.0,0.52997397]
[1739962827893,0.42054908,96509.0,96508.0,0.53297397]
[1739962828117,0.42054908,96509.0,96508.0,0.52997397]
[1739962828674,0.42054908,96509.0,96508.0,0.53297397]
[1739962829080,0.42054908,96509.0,96508.0,0.52997397]
[1739962829234,0.42054908,96509.0,96508.0,0.53297397]
[1739962829615,0.42054908,96509.0,96508.0,0.52997397]
[1739962830049,0.43679023,96509.0,96508.0,0.53297397]
[1739962830658,0.43679023,96509.0,96508.0,0.52997397]
[1739962830853,0.43679023,96509.0,96508.0,0.53297397]
[1739962831378,0.43679023,96509.0,96508.0,0.52997397]
[1739962831760,0.43679023,96509.0,96508.0,0.53297397]
[1739962832362,0.43679023,96509.0,96508.0,0.52997397]
[1739962832574,0.43679023,96509.0,96508.0,0.53297397]
[1739962832928,0.43679023,96509.0,96508.0,0.55421549]
[1739962833228,0.43679023,96509.0,96508.0,0.55121549]
[1739962833425,0.43679023,96509.0,96508.0,0.55421549]
[1739962833629,0.43679023,96509.0,96508.0,0.55121549]
[1739962834036,0.43679023,96509.0,96508.0,0.53297397]
[1739962834855,0.43679023,96509.0,96508.0,0.52997397]
[1739962835041,0.43679023,96509.0,96508.0,0.52697397]
[1739962835246,0.43679023,96509.0,96508.0,0.53297397]
[1739962835797,0.43679023,96509.0,96508.0,0.53897397]
[1739962837402,0.42054908,96509.0,96508.0,0.53897397]
[1739962838202,0.42054908,96509.0,96508.0,0.53297397]
[1739962838428,0.42054908,96509.0,96508.0,0.52697397]
[1739962838969,0.42054908,96509.0,96508.0,0.53297397]
[1739962840299,0.43679049,96509.0,96508.0,0.53297397]
[1739962843585,0.43679049,96509.0,96508.0,0.52997397]
[1739962843907,0.43679049,96509.0,96508.0,0.53297397]
[1739962844265,0.43679049,96509.0,96508.0,0.52997397]
[1739962844525,0.43679049,96509.0,96508.0,0.53297397]
[1739962846249,0.43679049,96509.0,96508.0,0.53297397]
[1739962846887,0.42054908,96509.0,96508.0,0.53297397]
[1739962849978,0.4367903,96509.0,96508.0,0.53297397]
[1739962857372,0.42054908,96509.0,96508.0,0.53297397]
[1739962859038,0.42054908,96509.0,96508.0,0.52997397]
[1739962859705,0.42054908,96509.0,96508.0,0.53297397]
[1739962860328,0.43679028,96509.0,96508.0,0.53297397]
[1739962864568,0.42054908,96509.0,96508.0,0.53297397]
[1739962869088,0.42054908,96509.0,96508.0,0.52997397]
[1739962869224,0.43679028,96509.0,96508.0,0.52997397]
[1739962869628,0.43679028,96509.0,96508.0,0.53297397]
[1739962870759,0.43679028,96509.0,96508.0,0.56540899]
[1739962871555,0.43679028,96509.0,96508.0,0.55792899]
[1739962871776,0.43679028,96509.0,96508.0,0.56540899]
[1739962872328,0.43679028,96509.0,96508.0,0.55940899]
[1739962872526,0.43679028,96509.0,96508.0,0.56240899]
[1739962872747,0.43679028,96509.0,96508.0,0.56540899]
[1739962872948,0.43679028,96509.0,96508.0,0.56240899]
[1739962873328,0.43679028,96509.0,96508.0,0.56640899]
[1739962874337,0.43679028,96509.0,96508.0,0.56340899]
[1739962874715,0.43679028,96509.0,96508.0,0.56640899]
[1739962875195,0.42054908,96509.0,96508.0,0.56640899]
[1739962884295,0.42054908,96509.0,96508.0,0.55940899]
[1739962884516,0.42054908,96509.0,96508.0,0.56240899]
[1739962884649,0.42054908,96509.0,96508.0,0.56540899]
[1739962884852,0.42054908,96509.0,96508.0,0.55940899]
[1739962885123,0.42054908,96509.0,96508.0,0.56340899]
[1739962885302,0.42054908,96509.0,96508.0,0.56640899]
[1739962886004,0.42054908,96509.0,96508.0,0.56240899]
[1739962886235,0.42054908,96509.0,96508.0,0.56640899]
[1739962886514,0.42054908,96509.0,96508.0,0.56340899]
[1739962886946,0.42054908,96509.0,96508.0,0.56640899]
[1739962887431,0.42054908,96509.0,96508.0,0.55940899]
[1739962887629,0.42054908,96509.0,96508.0,0.56640899]
[1739962887987,0.42054908,96509.0,96508.0,0.56340899]
[1739962888189,0.42054908,96509.0,96508.0,0.56740899]
[1739962888389,0.42054908,96509.0,96508.0,0.56240899]
[1739962888891,0.42054908,96509.0,96508.0,0.56640899]
[1739962890466,0.42054908,96509.0,96508.0,0.56340899]
[1739962890668,0.42054908,96509.0,96508.0,0.56640899]
[1739962890845,0.42054908,96509.0,96508.0,0.56240899]
[1739962890986,0.42054908,96509.0,96508.0,0.55940899]
[1739962891390,0.42054908,96509.0,96508.0,0.56640899]
[1739962891594,0.42054908,96509.0,96508.0,0.56240899]
[1739962891809,0.42054908,96509.0,96508.0,0.56340899]
[1739962892190,0.42054908,96509.0,96508.0,0.56640899]
[1739962892751,0.42054908,96509.0,96508.0,0.56240899]
[1739962893956,0.42054908,96509.0,96508.0,0.55940899]
[1739962894180,0.42054908,96509.0,96508.0,0.56640899]
[1739962894786,0.42054908,96509.0,96508.0,0.56340899]
[1739962894987,0.42054908,96509.0,96508.0,0.56240899]
[1739962895192,0.42054908,96509.0,96508.0,0.56640899]
[1739962895598,0.42054908,96509.0,96508.0,0.55940899]
[1739962895775,0.42054908,96509.0,96508.0,0.56640899]
[1739962897278,0.42054908,96509.0,96508.0,0.56240899]
[1739962897480,0.42054908,96509.0,96508.0,0.55940899]
[1739962897636,0.42054908,96509.0,96508.0,0.56340899]
[1739962897813,0.42054908,96509.0,96508.0,0.56240899]
[1739962898255,0.42054908,96509.0,96508.0,0.56640899]
[1739962898456,0.42054908,96509.0,96508.0,0.60880899]
[1739962898823,0.42054908,96509.0,96508.0,0.61180899]
[1739962898939,0.42054908,96509.0,96508.0,0.60780899]
[1739962899140,0.42054908,96509.0,96508.0,0.61180899]
[1739962900133,0.42054908,96509.0,96508.0,0.60880899]
[1739962900483,0.42054908,96509.0,96508.0,0.60780899]
[1739962900692,0.42054908,96509.0,96508.0,0.61380899]
[1739962901056,0.42054908,96509.0,96508.0,0.61080899]
[1739962901333,0.42054908,96509.0,96508.0,0.61680899]
[1739962903453,0.42054908,96509.0,96508.0,1.16250899]
[1739962914196,0.42054908,96509.0,96508.0,1.18550899]
[1739962917414,0.42054908,96509.0,96508.0,1.16250899]
[1739962917629,0.42054908,96509.0,96508.0,1.03550899]
[1739962917831,0.42054908,96509.0,96508.0,1.02802899]
[1739962917945,0.42054908,96509.0,96508.0,1.00307397]
[1739962921185,0.42054908,96509.0,96508.0,0.45737397]
[1739962926909,0.42054908,96509.0,96508.0,0.48977535]
[1739962928539,0.42054908,96509.0,96508.0,0.56967535]
[1739962931844,0.42054908,96509.0,96508.0,0.59267535]
[1739962932021,0.42054908,96509.0,96508.0,0.58519535]
[1739962932232,0.42054908,96509.0,96508.0,0.48229535]
[1739962932424,0.42054908,96509.0,96508.0,0.45737397]
[1739962932823,0.42054908,96509.0,96508.0,0.44989397]
[1739962933028,0.42054908,96509.0,96508.0,0.45737397]
[1739962934034,0.42054908,96509.0,96508.0,0.45137397]
[1739962934232,0.42054908,96509.0,96508.0,0.44537397]
[1739962934540,0.42054908,96509.0,96508.0,0.44837397]
[1739962935396,0.42054908,96509.0,96508.0,0.45137397]
[1739962937734,0.42054908,96509.0,96508.0,0.34139032]
[1739962937922,0.42054908,96509.0,96508.0,0.34887032]
[1739962938122,0.43679074,96509.0,96508.0,0.34887032]
[1739962938325,0.43679074,96509.0,96508.0,0.34287032]
[1739962938523,0.43679074,96509.0,96508.0,0.34487032]
[1739962938726,0.43679074,96509.0,96508.0,0.34587032]
[1739962938923,0.43679074,96509.0,96508.0,0.34387032]
[1739962939131,0.43679074,96509.0,96508.0,0.02027032]
[1739962939509,0.43679074,96509.0,96508.0,0.013851]
[1739962939911,0.43679074,96509.0,96508.0,0.012851]
[1739962940331,0.43679074,96509.0,96508.0,0.011851]
[1739962940706,0.43679074,96509.0,96508.0,0.013851]
[1739962941765,0.43679074,96509.0,96508.0,0.012851]
[1739962941936,0.43679074,96509.0,96508.0,0.011851]
[1739962942387,0.43679074,96509.0,96508.0,0.013851]
[1739962942591,0.49499074,96509.0,96508.0,0.013851]
[1739962943085,0.47874908,96509.0,96508.0,0.013851]
[1739962943209,0.42054908,96509.0,96508.0,0.013851]
[1739962945555,0.42054908,96509.0,96508.0,0.011851]
[1739962945891,0.42054908,96509.0,96508.0,0.010851]
[1739962946090,0.43679161,96509.0,96508.0,0.003371]
[1739962946293,0.43679161,96509.0,96508.0,0.011851]
[1739962946959,0.43679161,96509.0,96508.0,0.013851]
[1739962947162,0.43679161,96509.0,96508.0,0.011851]
[1739962947542,0.43679161,96509.0,96508.0,0.013851]
[1739962947757,0.43679161,96509.0,96508.0,0.011851]
[1739962947906,0.43679161,96509.0,96508.0,0.010851]
[1739962948111,0.43679161,96509.0,96508.0,0.013851]
[1739962948315,0.43679161,96509.0,96508.0,0.011851]
[1739962948487,0.43679161,96509.0,96508.0,0.010851]
[1739962948689,0.43679161,96509.0,96508.0,0.013851]
[1739962948890,0.43679161,96509.0,96508.0,0.015851]
[1739962949662,0.43679161,96509.0,96508.0,0.013851]
[1739962949864,0.43679161,96509.0,96508.0,0.012851]
[1739962950411,0.43679161,96509.0,96508.0,0.015851]
[1739962951091,0.53249161,96509.0,96508.0,0.015851]
[1739962951857,0.63499526,96509.0,96508.0,0.015851]